[Event "FIDE Women World Rapid 2024"]
[Site "New York"]
[Date "2024.12.27"]
[Round "5.14"]
[White "Koneru, Humpy"]
[Black "Yu, Jennifer"]
[Result "1-0"]
[ECO "A53"]
[WhiteElo "2523"]
[BlackElo "2283"]
[Annotator "ChessBase"]
[PlyCount "91"]
[EventDate "2024.12.14"]
[EventType "swiss"]
[EventCountry "USA"]
[SourceTitle "playchess.com"]
[Source "ChessBase"]
[SourceQuality "1"]
[TimeControl "900+10"]

1. d4 {[%emt 0:00:02]} Nf6 {[%emt 0:00:06]} 2. c4 {[%emt 0:00:03]} d6 {[%emt 0:00:13]} 3. Nc3 {[%emt 0:00:36]} Nbd7 {[%emt 0:00:04]} 4. e4 {[%emt 0:00:23]} e5 {[%emt 0:00:03]} 5. d5 {[%emt 0:00:17]} Be7 {[%emt 0:01:01]} 6. Bd3 {[%emt 0:01:06]} Nc5 {[%emt 0:00:47]} 7. Bc2 {[%emt 0:00:03]} a5 {[%emt 0:00:01]} 8. Nge2 {[%emt 0:00:36]} O-O {[%emt 0:00:41]} 9. Ng3 {[%emt 0:00:57]} Ne8 {[%emt 0:01:21]} 10. h4 {[%emt 0:02:15]} g6 {[%emt 0:03:48]} 11. Bh6 {[%emt 0:01:12]} Ng7 {[%emt 0:00:02]} 12. h5 {[%emt 0:01:59]} Bg5 {[%emt 0:00:21]} 13. Bxg5 {[%emt 0:00:51]} Qxg5 {[%emt 0:00:02]} 14. Qd2 {[%emt 0:01:20]} Qxd2+ {[%emt 0:01:42]} 15. Kxd2 {[%emt 0:00:02]} g5 {[%emt 0:02:58]} 16. h6 {[%emt 0:00:55]} Ne8 {[%emt 0:00:01]} 17. b3 {[%emt 0:00:18]} b6 {[%emt 0:01:29]} 18. a3 {[%emt 0:01:18]} Kh8 {[%emt 0:00:39]} 19. Rab1 {[%emt 0:00:58]} Nf6 {[%emt 0:00:22]} 20. Nb5 {[%emt 0:00:34]} Na6 {[%emt 0:00:24]} 21. b4 {[%emt 0:01:22]} Ng8 {[%emt 0:00:08]} 22. f3 {[%emt 0:00:39]} Ne7 {[%emt 0:00:27]} 23. Nf1 {[%emt 0:00:12]} f5 {[%emt 0:00:34]} 24. Rh5 {[%emt 0:00:17]} fxe4 {[%emt 0:01:11]} 25. Bxe4 {[%emt 0:00:03]} Bf5 {[%emt 0:00:15]} 26. Ng3 {[%emt 0:00:52]} Bxe4 {[%emt 0:00:09]} 27. Nxe4 {[%emt 0:00:02]} g4 {[%emt 0:00:00]} 28. fxg4 {[%emt 0:00:14]} Rf4 {[%emt 0:00:02]} 29. Nbc3 {[%emt 0:00:06]} Rxg4 {[%emt 0:00:07]} 30. g3 {[%emt 0:00:01]} Rf8 {[%emt 0:00:10]} 31. bxa5 {[%emt 0:00:03]} bxa5 {[%emt 0:00:05]} 32. Rb7 {[%emt 0:00:03]} Ng6 {[%emt 0:00:11]} 33. Rh2 {[%emt 0:00:12]} Rb8 {[%emt 0:00:30]} 34. Rxb8+ {[%emt 0:00:11]} Nxb8 {[%emt 0:00:02]} 35. Ke3 {[%emt 0:00:02]} Ne7 {[%emt 0:00:12]} 36. Rf2 {[%emt 0:00:06]} Nd7 {[%emt 0:00:11]} 37. Rf7 {[%emt 0:00:03]} Nb6 {[%emt 0:00:19]} 38. Rxe7 {[%emt 0:00:10]} Nxc4+ {[%emt 0:00:02]} 39. Kf3 {[%emt 0:00:13]} Rg6 {[%emt 0:00:07]} 40. a4 {[%emt 0:00:24]} Rxh6 {[%emt 0:00:04]} 41. Rxc7 {[%emt 0:00:03]} Nb2 {[%emt 0:00:14]} 42. Rc6 {[%emt 0:00:11]} Rh1 {[%emt 0:00:32]} 43. Nxd6 {[%emt 0:00:11]} Rf1+ {[%emt 0:00:06]} 44. Ke2 {[%emt 0:00:03]} Rc1 {[%emt 0:00:14]} 45. Kd2 {[%emt 0:00:08]} Rg1 {[%emt 0:00:05]} 46. Nf5 {[%emt 0:00:06]} 1-0

[Event "FIDE Women World Rapid 2024"]
[Site "New York"]
[Date "2024.12.27"]
[Round "5.14"]
[White "Balabayeva, Xeniya"]
[Black "Kaliakhmet, Elnaz"]
[Result "0-1"]
[ECO "D02"]
[WhiteElo "2315"]
[BlackElo "2113"]
[Annotator "ChessBase"]
[PlyCount "60"]
[EventDate "2024.12.14"]
[EventType "swiss"]
[EventCountry "USA"]
[SourceTitle "playchess.com"]
[Source "ChessBase"]
[SourceQuality "1"]
[TimeControl "900+10"]

1. d4 {[%emt 0:00:01]} d5 {[%emt 0:00:01]} 2. Nf3 {[%emt 0:00:02]} e6 {[%emt 0:00:02]} 3. Bf4 {[%emt 0:00:56]} c5 {[%emt 0:00:03]} 4. e3 {[%emt 0:00:02]} Nf6 {[%emt 0:00:03]} 5. c3 {[%emt 0:00:06]} Bd6 {[%emt 0:00:07]} 6. Bd3 {[%emt 0:00:53]} Bxf4 {[%emt 0:00:13]} 7. exf4 {[%emt 0:00:02]} cxd4 {[%emt 0:00:42]} 8. cxd4 {[%emt 0:01:09]} Qb6 {[%emt 0:01:31]} 9. Qd2 {[%emt 0:00:15]} Nc6 {[%emt 0:00:34]} 10. Nc3 {[%emt 0:00:20]} O-O {[%emt 0:00:34]} 11. Rd1 {[%emt 0:00:39]} Bd7 {[%emt 0:01:01]} 12. O-O {[%emt 0:00:23]} Rac8 {[%emt 0:02:18]} 13. Rfe1 {[%emt 0:01:33]} a6 {[%emt 0:00:47]} 14. Bb1 {[%emt 0:01:17]} Na5 {[%emt 0:01:33]} 15. Ne5 {[%emt 0:04:25]} Rfd8 {[%emt 0:01:38]} 16. b3 {[%emt 0:01:00]} Qb4 {[%emt 0:01:26]} 17. Re3 {[%emt 0:00:04]} Rc7 {[%emt 0:01:18]} 18. Qb2 {[%emt 0:00:29]} Rdc8 {[%emt 0:01:17]} 19. Ne2 {[%emt 0:03:09]} Nc4 {[%emt 0:00:09]} 20. Nxc4 {[%emt 0:00:05]} dxc4 {[%emt 0:00:01]} 21. a3 {[%emt 0:00:52]} Qb6 {[%emt 0:00:09]} 22. b4 {[%emt 0:00:06]} Ba4 {[%emt 0:01:11]} 23. Rc1 {[%emt 0:00:47]} Qd6 {[%emt 0:00:03]} 24. Nc3 {[%emt 0:00:12]} Be8 {[%emt 0:00:16]} 25. Ne2 {[%emt 0:00:06]} Nd5 {[%emt 0:00:11]} 26. Rh3 {[%emt 0:00:02]} g6 {[%emt 0:00:02]} 27. Qd2 {[%emt 0:00:06]} c3 {[%emt 0:01:04]} 28. Nxc3 {[%emt 0:00:30]} Qxf4 {[%emt 0:00:21]} 29. Qe1 {[%emt 0:00:02]} Nxc3 {[%emt 0:00:58]} 30. Rhxc3 {[%emt 0:00:05]} Qxc1 {[%emt 0:00:14]} 0-1

[Event "FIDE Women World Rapid 2024"]
[Site "New York"]
[Date "2024.12.27"]
[Round "5.15"]
[White "Tokhirjonova, Gulrukhbegim"]
[Black "Muzychuk, Mariya"]
[Result "1/2-1/2"]
[ECO "D00"]
[WhiteElo "2385"]
[BlackElo "2490"]
[Annotator "ChessBase"]
[PlyCount "103"]
[EventDate "2024.12.14"]
[EventType "swiss"]
[EventCountry "USA"]
[SourceTitle "playchess.com"]
[Source "ChessBase"]
[SourceQuality "1"]
[TimeControl "900+10"]

1. d4 {[%emt 0:00:03]} d5 {[%emt 0:00:02]} 2. Nc3 {[%emt 0:00:02]} Nf6 {[%emt 0:00:03]} 3. Bf4 {[%emt 0:00:02]} e6 {[%emt 0:00:03]} 4. e3 {[%emt 0:00:03]} Bb4 {[%emt 0:00:12]} 5. h4 {[%emt 0:00:03]} c5 {[%emt 0:00:12]} 6. Nge2 {[%emt 0:00:12]} cxd4 {[%emt 0:00:05]} 7. exd4 {[%emt 0:00:02]} Bd7 {[%emt 0:00:12]} 8. a3 {[%emt 0:00:08]} Be7 {[%emt 0:00:02]} 9. h5 {[%emt 0:00:10]} h6 {[%emt 0:00:11]} 10. Qd3 {[%emt 0:00:04]} Nc6 {[%emt 0:01:31]} 11. Qg3 {[%emt 0:01:00]} Qb6 {[%emt 0:00:45]} 12. O-O-O {[%emt 0:01:06]} O-O-O {[%emt 0:01:16]} 13. Na4 {[%emt 0:02:27]} Qa5 {[%emt 0:00:44]} 14. Nec3 {[%emt 0:00:02]} Ne4 {[%emt 0:04:24]} 15. Nxe4 {[%emt 0:00:14]} dxe4 {[%emt 0:00:11]} 16. Nc5 {[%emt 0:04:10]} Bxc5 {[%emt 0:01:12]} 17. dxc5 {[%emt 0:00:02]} Qxc5 {[%emt 0:00:03]} 18. Be3 {[%emt 0:00:23]} Qe5 {[%emt 0:01:04]} 19. Qxe5 {[%emt 0:00:04]} Nxe5 {[%emt 0:00:01]} 20. Bxa7 {[%emt 0:00:04]} Bc6 {[%emt 0:00:17]} 21. Be2 {[%emt 0:01:43]} Rd5 {[%emt 0:00:08]} 22. Bb6 {[%emt 0:00:47]} f5 {[%emt 0:00:17]} 23. c4 {[%emt 0:00:41]} Nd3+ {[%emt 0:00:49]} 24. Bxd3 {[%emt 0:01:40]} Rxd3 {[%emt 0:00:02]} 25. Rxd3 {[%emt 0:00:06]} exd3 {[%emt 0:00:01]} 26. Kd2 {[%emt 0:00:40]} Bxg2 {[%emt 0:01:21]} 27. Rg1 {[%emt 0:00:01]} Bf3 {[%emt 0:00:01]} 28. Rxg7 {[%emt 0:00:38]} Bxh5 {[%emt 0:00:01]} 29. Kxd3 {[%emt 0:00:03]} Bf3 {[%emt 0:00:30]} 30. Ke3 {[%emt 0:00:07]} Bc6 {[%emt 0:00:05]} 31. b4 {[%emt 0:00:02]} h5 {[%emt 0:00:05]} 32. Rc7+ {[%emt 0:00:29]} Kb8 {[%emt 0:00:01]} 33. b5 {[%emt 0:00:03]} Be4 {[%emt 0:00:55]} 34. f3 {[%emt 0:00:25]} h4 {[%emt 0:00:14]} 35. Rg7 {[%emt 0:01:00]} Bc2 {[%emt 0:00:15]} 36. Bc7+ {[%emt 0:00:39]} Ka7 {[%emt 0:00:51]} 37. Be5 {[%emt 0:00:11]} h3 {[%emt 0:00:15]} 38. Bh2 {[%emt 0:00:06]} e5 {[%emt 0:00:25]} 39. c5 {[%emt 0:00:19]} f4+ {[%emt 0:00:37]} 40. Kd2 {[%emt 0:00:15]} Ba4 {[%emt 0:00:09]} 41. c6 {[%emt 0:00:02]} Bxb5 {[%emt 0:00:06]} 42. Rxb7+ {[%emt 0:00:04]} Ka6 {[%emt 0:00:01]} 43. Bg1 {[%emt 0:00:50]} Bxc6 {[%emt 0:01:32]} 44. Rb6+ {[%emt 0:00:04]} Ka5 {[%emt 0:00:01]} 45. Rxc6 {[%emt 0:00:02]} h2 {[%emt 0:00:03]} 46. Bxh2 {[%emt 0:00:03]} Rxh2+ {[%emt 0:00:02]} 47. Kd3 {[%emt 0:00:31]} Rf2 {[%emt 0:00:07]} 48. Rc5+ {[%emt 0:00:24]} Kb6 {[%emt 0:00:06]} 49. Rxe5 {[%emt 0:00:10]} Rxf3+ {[%emt 0:00:01]} 50. Ke4 {[%emt 0:00:01]} Rxa3 {[%emt 0:00:05]} 51. Kxf4 {[%emt 0:00:01]} Ra4+ {[%emt 0:00:01]} 52. Re4 {[%emt 0:00:01]} 1/2-1/2

[Event "FIDE Women World Rapid 2024"]
[Site "New York"]
[Date "2024.12.27"]
[Round "5.15"]
[White "Lesbekova, Assel"]
[Black "Zhukova, Natalia"]
[Result "1-0"]
[ECO "D02"]
[WhiteElo "1952"]
[BlackElo "2302"]
[Annotator "ChessBase"]
[PlyCount "78"]
[EventDate "2024.12.14"]
[EventType "swiss"]
[EventCountry "USA"]
[SourceTitle "playchess.com"]
[Source "ChessBase"]
[SourceQuality "1"]
[TimeControl "900+10"]

1. d4 {[%emt 0:00:02]} d5 {[%emt 0:01:07]} 2. Bf4 {[%emt 0:00:04]} Nf6 {[%emt 0:00:04]} 3. e3 {[%emt 0:00:05]} e6 {[%emt 0:00:05]} 4. Nd2 {[%emt 0:00:04]} c5 {[%emt 0:00:02]} 5. c3 {[%emt 0:00:08]} Nc6 {[%emt 0:00:02]} 6. Ngf3 {[%emt 0:00:19]} Be7 {[%emt 0:00:08]} 7. Bd3 {[%emt 0:00:23]} Nh5 {[%emt 0:00:06]} 8. Be5 {[%emt 0:00:30]} f6 {[%emt 0:00:17]} 9. Bg3 {[%emt 0:00:28]} O-O {[%emt 0:01:41]} 10. Ng5 {[%emt 0:02:02]} fxg5 {[%emt 0:01:52]} 11. Qxh5 {[%emt 0:00:06]} h6 {[%emt 0:00:34]} 12. Qg6 {[%emt 0:02:19]} Bf6 {[%emt 0:06:50]} 13. Qh7+ {[%emt 0:00:08]} Kf7 {[%emt 0:00:01]} 14. Qg6+ {[%emt 0:00:02]} Ke7 {[%emt 0:00:40]} 15. h4 {[%emt 0:00:55]} Qe8 {[%emt 0:02:55]} 16. dxc5 {[%emt 0:02:24]} e5 {[%emt 0:00:14]} 17. Qxe8+ {[%emt 0:00:14]} Rxe8 {[%emt 0:00:22]} 18. hxg5 {[%emt 0:00:12]} Bxg5 {[%emt 0:00:01]} 19. Bb5 {[%emt 0:00:10]} Bf6 {[%emt 0:00:17]} 20. O-O-O {[%emt 0:00:35]} Bg4 {[%emt 0:00:45]} 21. f3 {[%emt 0:00:31]} Be6 {[%emt 0:00:01]} 22. c4 {[%emt 0:00:15]} d4 {[%emt 0:00:28]} 23. Bxc6 {[%emt 0:00:44]} bxc6 {[%emt 0:00:00]} 24. exd4 {[%emt 0:00:05]} exd4 {[%emt 0:00:01]} 25. Ne4 {[%emt 0:00:24]} Bxc4 {[%emt 0:00:04]} 26. Nd6 {[%emt 0:00:26]} Bxa2 {[%emt 0:00:11]} 27. Rde1+ {[%emt 0:01:00]} Kd7 {[%emt 0:00:01]} 28. Rxe8 {[%emt 0:00:21]} Rxe8 {[%emt 0:00:01]} 29. Nxe8 {[%emt 0:00:02]} Kxe8 {[%emt 0:00:01]} 30. Bh4 {[%emt 0:01:07]} g5 {[%emt 0:00:49]} 31. Bf2 {[%emt 0:00:02]} Bc4 {[%emt 0:00:24]} 32. Rxh6 {[%emt 0:00:46]} Kf7 {[%emt 0:00:01]} 33. Rh7+ {[%emt 0:00:11]} Ke6 {[%emt 0:00:07]} 34. b4 {[%emt 0:00:50]} a6 {[%emt 0:00:04]} 35. Kd2 {[%emt 0:00:23]} Bf1 {[%emt 0:00:06]} 36. g3 {[%emt 0:00:17]} Bg2 {[%emt 0:00:36]} 37. Ke2 {[%emt 0:00:24]} d3+ {[%emt 0:00:07]} 38. Kxd3 {[%emt 0:00:07]} Bxf3 {[%emt 0:00:01]} 39. Bd4 {[%emt 0:00:09]} Bxd4 {[%emt 0:00:34]} 1-0

[Event "FIDE Women World Rapid 2024"]
[Site "New York"]
[Date "2024.12.27"]
[Round "5.16"]
[White "Yip, Carissa"]
[Black "Skripchenko, Almira"]
[Result "1-0"]
[ECO "C41"]
[WhiteElo "2432"]
[BlackElo "2364"]
[Annotator "ChessBase"]
[PlyCount "87"]
[EventDate "2024.12.14"]
[EventType "swiss"]
[EventCountry "USA"]
[SourceTitle "playchess.com"]
[Source "ChessBase"]
[SourceQuality "1"]
[TimeControl "900+10"]

1. e4 {[%emt 0:00:01]} d6 {[%emt 0:00:02]} 2. d4 {[%emt 0:00:01]} Nf6 {[%emt 0:00:01]} 3. Nc3 {[%emt 0:00:01]} e5 {[%emt 0:00:02]} 4. Nf3 {[%emt 0:00:02]} Nbd7 {[%emt 0:00:02]} 5. Rg1 {[%emt 0:00:01]} g6 {[%emt 0:00:37]} 6. g4 {[%emt 0:00:04]} Bg7 {[%emt 0:00:01]} 7. Be3 {[%emt 0:00:20]} c6 {[%emt 0:00:45]} 8. Qd2 {[%emt 0:00:27]} O-O {[%emt 0:01:14]} 9. g5 {[%emt 0:00:02]} Nh5 {[%emt 0:00:02]} 10. O-O-O {[%emt 0:00:03]} Re8 {[%emt 0:00:02]} 11. a3 {[%emt 0:00:08]} Qc7 {[%emt 0:00:13]} 12. h4 {[%emt 0:00:12]} Nf8 {[%emt 0:00:52]} 13. Kb1 {[%emt 0:02:18]} Bd7 {[%emt 0:00:34]} 14. Nh2 {[%emt 0:02:44]} exd4 {[%emt 0:05:13]} 15. Bxd4 {[%emt 0:00:02]} Bxd4 {[%emt 0:00:01]} 16. Qxd4 {[%emt 0:00:12]} d5 {[%emt 0:00:01]} 17. Nf3 {[%emt 0:00:24]} Qf4 {[%emt 0:00:54]} 18. Bg2 {[%emt 0:02:34]} dxe4 {[%emt 0:00:32]} 19. Nd2 {[%emt 0:00:03]} Bg4 {[%emt 0:00:19]} 20. Ncxe4 {[%emt 0:03:02]} Bxd1 {[%emt 0:00:36]} 21. Rxd1 {[%emt 0:00:01]} Rad8 {[%emt 0:01:43]} 22. Qc3 {[%emt 0:01:54]} Qe5 {[%emt 0:00:20]} 23. Qb3 {[%emt 0:00:33]} Re7 {[%emt 0:00:35]} 24. Bf3 {[%emt 0:00:29]} Ng7 {[%emt 0:00:23]} 25. Rh1 {[%emt 0:00:13]} Nfe6 {[%emt 0:00:19]} 26. Nf6+ {[%emt 0:01:19]} Kh8 {[%emt 0:00:01]} 27. Nde4 {[%emt 0:00:09]} Nd4 {[%emt 0:01:30]} 28. Qd3 {[%emt 0:00:01]} Qf4 {[%emt 0:00:41]} 29. Rd1 {[%emt 0:00:46]} Nge6 {[%emt 0:00:04]} 30. Bg4 {[%emt 0:00:17]} Kg7 {[%emt 0:00:41]} 31. Bxe6 {[%emt 0:01:14]} fxe6 {[%emt 0:00:17]} 32. c3 {[%emt 0:00:06]} e5 {[%emt 0:00:00]} 33. cxd4 {[%emt 0:00:06]} Rxd4 {[%emt 0:00:01]} 34. Qb3 {[%emt 0:00:07]} Rf7 {[%emt 0:00:23]} 35. Rxd4 {[%emt 0:00:21]} exd4 {[%emt 0:00:00]} 36. Qe6 {[%emt 0:00:01]} Qf5 {[%emt 0:00:30]} 37. Qe8 {[%emt 0:00:05]} Rf8 {[%emt 0:00:03]} 38. Qe7+ {[%emt 0:00:02]} Rf7 {[%emt 0:00:01]} 39. Qd8 {[%emt 0:00:02]} Rf8 {[%emt 0:00:04]} 40. Qxd4 {[%emt 0:00:02]} Rf7 {[%emt 0:00:26]} 41. Ng4+ {[%emt 0:00:11]} Kf8 {[%emt 0:00:07]} 42. Qd8+ {[%emt 0:00:03]} Kg7 {[%emt 0:00:01]} 43. Qd4+ {[%emt 0:00:08]} Kf8 {[%emt 0:00:01]} 44. Nh6 {[%emt 0:00:16]} 1-0

[Event "FIDE Women World Rapid 2024"]
[Site "New York"]
[Date "2024.12.27"]
[Round "5.16"]
[White "Heinemann, Josefine"]
[Black "Paragua, Megan Althea"]
[Result "1/2-1/2"]
[ECO "B22"]
[WhiteElo "2305"]
[BlackElo "2185"]
[Annotator "ChessBase"]
[PlyCount "74"]
[EventDate "2024.12.14"]
[EventType "swiss"]
[EventCountry "USA"]
[SourceTitle "playchess.com"]
[Source "ChessBase"]
[SourceQuality "1"]
[TimeControl "900+10"]

1. e4 {[%emt 0:00:03]} c5 {[%emt 0:00:01]} 2. c3 {[%emt 0:00:01]} Nf6 {[%emt 0:00:07]} 3. e5 {[%emt 0:00:02]} Nd5 {[%emt 0:00:01]} 4. d4 {[%emt 0:00:02]} cxd4 {[%emt 0:00:02]} 5. cxd4 {[%emt 0:00:02]} d6 {[%emt 0:00:12]} 6. Nf3 {[%emt 0:00:01]} Nc6 {[%emt 0:00:02]} 7. Bc4 {[%emt 0:00:02]} Nb6 {[%emt 0:00:12]} 8. Bb5 {[%emt 0:00:01]} dxe5 {[%emt 0:00:02]} 9. Nxe5 {[%emt 0:00:02]} Bd7 {[%emt 0:00:01]} 10. Nxd7 {[%emt 0:00:02]} Qxd7 {[%emt 0:00:01]} 11. Nc3 {[%emt 0:00:07]} a6 {[%emt 0:00:03]} 12. Bxc6 {[%emt 0:00:07]} bxc6 {[%emt 0:00:01]} 13. O-O {[%emt 0:00:13]} g6 {[%emt 0:00:44]} 14. Qb3 {[%emt 0:04:00]} Nd5 {[%emt 0:03:50]} 15. Nxd5 {[%emt 0:03:19]} cxd5 {[%emt 0:00:02]} 16. Bf4 {[%emt 0:00:01]} Bg7 {[%emt 0:00:16]} 17. Rac1 {[%emt 0:00:24]} O-O {[%emt 0:00:20]} 18. Rc7 {[%emt 0:00:53]} Qb5 {[%emt 0:01:09]} 19. Rxe7 {[%emt 0:01:50]} Bxd4 {[%emt 0:00:51]} 20. Rb7 {[%emt 0:02:07]} Qc5 {[%emt 0:01:11]} 21. Bh6 {[%emt 0:00:33]} Bg7 {[%emt 0:01:13]} 22. Bxg7 {[%emt 0:00:31]} Kxg7 {[%emt 0:00:02]} 23. Rd1 {[%emt 0:00:02]} Rae8 {[%emt 0:00:49]} 24. g3 {[%emt 0:00:21]} Re5 {[%emt 0:01:46]} 25. Qd3 {[%emt 0:01:59]} Rfe8 {[%emt 0:05:29]} 26. Qxa6 {[%emt 0:02:15]} Re1+ {[%emt 0:00:19]} 27. Rxe1 {[%emt 0:00:02]} Rxe1+ {[%emt 0:00:02]} 28. Kg2 {[%emt 0:00:01]} Qc1 {[%emt 0:00:01]} 29. Qd3 {[%emt 0:00:18]} Rd1 {[%emt 0:00:29]} 30. Qe2 {[%emt 0:00:25]} Rg1+ {[%emt 0:00:06]} 31. Kf3 {[%emt 0:00:03]} Qg5 {[%emt 0:00:15]} 32. Qd3 {[%emt 0:00:25]} Qh5+ {[%emt 0:00:09]} 33. Kf4 {[%emt 0:00:05]} Qh6+ {[%emt 0:00:28]} 34. Kf3 {[%emt 0:00:01]} Qh5+ {[%emt 0:00:02]} 35. Kf4 {[%emt 0:00:01]} Qh6+ {[%emt 0:00:19]} 36. Kf3 {[%emt 0:00:00]} Qh5+ {[%emt 0:00:07]} 37. Kf4 {[%emt 0:00:01]} Qh6+ {[%emt 0:00:11]} 1/2-1/2

[Event "FIDE Women World Rapid 2024"]
[Site "New York"]
[Date "2024.12.27"]
[Round "5.17"]
[White "Ouellet, Maili-Jade"]
[Black "Dzagnidze, Nana"]
[Result "0-1"]
[ECO "E20"]
[WhiteElo "2386"]
[BlackElo "2518"]
[Annotator "ChessBase"]
[PlyCount "96"]
[EventDate "2024.12.14"]
[EventType "swiss"]
[EventCountry "USA"]
[SourceTitle "playchess.com"]
[Source "ChessBase"]
[SourceQuality "1"]
[TimeControl "900+10"]

1. d4 {[%emt 0:00:02]} Nf6 {[%emt 0:00:02]} 2. c4 {[%emt 0:00:01]} e6 {[%emt 0:00:02]} 3. Nc3 {[%emt 0:00:02]} Bb4 {[%emt 0:00:03]} 4. f3 {[%emt 0:00:05]} c5 {[%emt 0:00:47]} 5. d5 {[%emt 0:00:02]} d6 {[%emt 0:00:08]} 6. e4 {[%emt 0:00:01]} O-O {[%emt 0:00:27]} 7. Nge2 {[%emt 0:00:09]} b5 {[%emt 0:00:13]} 8. Nf4 {[%emt 0:00:08]} e5 {[%emt 0:00:42]} 9. Nfe2 {[%emt 0:00:02]} bxc4 {[%emt 0:00:15]} 10. Ng3 {[%emt 0:00:02]} Nbd7 {[%emt 0:01:59]} 11. Be2 {[%emt 0:01:08]} Rb8 {[%emt 0:00:52]} 12. O-O {[%emt 0:00:21]} Ne8 {[%emt 0:00:07]} 13. Qc2 {[%emt 0:00:38]} Bxc3 {[%emt 0:00:32]} 14. bxc3 {[%emt 0:00:29]} f6 {[%emt 0:00:59]} 15. h4 {[%emt 0:01:25]} Rf7 {[%emt 0:01:36]} 16. Bxc4 {[%emt 0:01:58]} Qa5 {[%emt 0:00:13]} 17. f4 {[%emt 0:00:57]} Nb6 {[%emt 0:00:58]} 18. Be2 {[%emt 0:01:38]} Ba6 {[%emt 0:03:49]} 19. Bxa6 {[%emt 0:00:35]} Qxa6 {[%emt 0:00:02]} 20. a4 {[%emt 0:02:06]} Qc4 {[%emt 0:00:51]} 21. Nf5 {[%emt 0:00:35]} Nd7 {[%emt 0:00:12]} 22. Rf3 {[%emt 0:01:55]} Kh8 {[%emt 0:02:05]} 23. h5 {[%emt 0:00:13]} a5 {[%emt 0:01:15]} 24. Bd2 {[%emt 0:00:10]} Qb3 {[%emt 0:00:11]} 25. Qc1 {[%emt 0:01:37]} c4 {[%emt 0:00:13]} 26. Be3 {[%emt 0:00:01]} exf4 {[%emt 0:00:27]} 27. Bxf4 {[%emt 0:00:41]} Qb6+ {[%emt 0:00:04]} 28. Kh1 {[%emt 0:00:41]} Ne5 {[%emt 0:00:24]} 29. Bxe5 {[%emt 0:00:02]} dxe5 {[%emt 0:00:01]} 30. Qf1 {[%emt 0:00:21]} Rc7 {[%emt 0:00:22]} 31. h6 {[%emt 0:00:16]} gxh6 {[%emt 0:00:03]} 32. Nxh6 {[%emt 0:00:18]} Qa6 {[%emt 0:00:24]} 33. Ng4 {[%emt 0:00:12]} Kg7 {[%emt 0:00:06]} 34. Rg3 {[%emt 0:00:08]} Kh8 {[%emt 0:00:06]} 35. Qf5 {[%emt 0:00:27]} Rg7 {[%emt 0:00:06]} 36. Rf1 {[%emt 0:00:40]} Qc8 {[%emt 0:00:06]} 37. Qf3 {[%emt 0:00:26]} Qd8 {[%emt 0:00:26]} 38. Nh6 {[%emt 0:00:07]} Rbb7 {[%emt 0:00:05]} 39. Nf5 {[%emt 0:00:24]} Rg6 {[%emt 0:00:08]} 40. Rh3 {[%emt 0:00:23]} Nd6 {[%emt 0:00:08]} 41. Nh4 {[%emt 0:00:19]} Rh6 {[%emt 0:00:05]} 42. Qe3 {[%emt 0:00:01]} Rh5 {[%emt 0:00:19]} 43. Kh2 {[%emt 0:00:10]} Rg7 {[%emt 0:00:13]} 44. Rff3 {[%emt 0:00:08]} Rg4 {[%emt 0:00:05]} 45. Rfg3 {[%emt 0:00:12]} Rgxh4 {[%emt 0:00:05]} 46. Qf3 {[%emt 0:00:09]} Nxe4 {[%emt 0:00:13]} 47. Rg4 {[%emt 0:00:21]} Ng5 {[%emt 0:00:10]} 48. Rxg5 {[%emt 0:00:02]} Rxh3+ {[%emt 0:00:02]} 0-1

[Event "FIDE Women World Rapid 2024"]
[Site "New York"]
[Date "2024.12.27"]
[Round "5.17"]
[White "Charkhalashvili, Inga"]
[Black "Tsolakidou, Stavroula"]
[Result "0-1"]
[ECO "E90"]
[WhiteElo "2240"]
[BlackElo "2451"]
[Annotator "ChessBase"]
[PlyCount "110"]
[EventDate "2024.12.14"]
[EventType "swiss"]
[EventCountry "USA"]
[SourceTitle "playchess.com"]
[Source "ChessBase"]
[SourceQuality "1"]
[TimeControl "900+10"]

1. d4 {[%emt 0:00:02]} Nf6 {[%emt 0:00:02]} 2. c4 {[%emt 0:00:02]} g6 {[%emt 0:00:03]} 3. Nf3 {[%emt 0:00:01]} Bg7 {[%emt 0:00:02]} 4. Nc3 {[%emt 0:00:02]} O-O {[%emt 0:00:05]} 5. e4 {[%emt 0:00:36]} d6 {[%emt 0:00:07]} 6. h3 {[%emt 0:00:02]} e5 {[%emt 0:00:23]} 7. d5 {[%emt 0:00:30]} Nh5 {[%emt 0:00:19]} 8. Be3 {[%emt 0:00:09]} Na6 {[%emt 0:02:11]} 9. Qc2 {[%emt 0:01:56]} f5 {[%emt 0:01:16]} 10. a3 {[%emt 0:01:47]} Nf6 {[%emt 0:04:29]} 11. O-O-O {[%emt 0:01:22]} f4 {[%emt 0:00:37]} 12. Bd2 {[%emt 0:00:01]} Nc5 {[%emt 0:00:03]} 13. b4 {[%emt 0:00:31]} Ncxe4 {[%emt 0:00:29]} 14. Nxe4 {[%emt 0:00:12]} Nxe4 {[%emt 0:00:03]} 15. Qxe4 {[%emt 0:01:33]} Bf5 {[%emt 0:00:02]} 16. Qe1 {[%emt 0:00:25]} e4 {[%emt 0:00:05]} 17. Bc3 {[%emt 0:00:02]} exf3 {[%emt 0:00:26]} 18. gxf3 {[%emt 0:00:08]} Qd7 {[%emt 0:00:59]} 19. Bd3 {[%emt 0:01:34]} b5 {[%emt 0:02:58]} 20. Bxf5 {[%emt 0:02:12]} Rxf5 {[%emt 0:00:08]} 21. cxb5 {[%emt 0:00:27]} Re8 {[%emt 0:02:02]} 22. Qd2 {[%emt 0:00:01]} Qxb5 {[%emt 0:00:30]} 23. Bxg7 {[%emt 0:00:50]} Kxg7 {[%emt 0:00:03]} 24. Qc3+ {[%emt 0:00:30]} Kg8 {[%emt 0:00:30]} 25. Rhe1 {[%emt 0:00:11]} Rfe5 {[%emt 0:00:37]} 26. Rxe5 {[%emt 0:00:38]} Rxe5 {[%emt 0:00:02]} 27. Qxc7 {[%emt 0:00:02]} Re2 {[%emt 0:00:14]} 28. Qc8+ {[%emt 0:02:36]} Kf7 {[%emt 0:00:24]} 29. Qc7+ {[%emt 0:00:07]} Re7 {[%emt 0:00:05]} 30. Qc3 {[%emt 0:01:07]} Qe2 {[%emt 0:00:14]} 31. Rd2 {[%emt 0:00:11]} Qf1+ {[%emt 0:00:15]} 32. Kb2 {[%emt 0:00:04]} Qxh3 {[%emt 0:00:06]} 33. Qh8 {[%emt 0:00:24]} Qh5 {[%emt 0:00:29]} 34. Rd4 {[%emt 0:00:14]} g5 {[%emt 0:00:05]} 35. Re4 {[%emt 0:00:06]} Qg6 {[%emt 0:00:10]} 36. Rxe7+ {[%emt 0:00:06]} Kxe7 {[%emt 0:00:02]} 37. Qc8 {[%emt 0:00:06]} Qf6+ {[%emt 0:00:08]} 38. Kb3 {[%emt 0:00:04]} Qe5 {[%emt 0:00:07]} 39. Qc7+ {[%emt 0:00:16]} Kf6 {[%emt 0:00:03]} 40. Qd8+ {[%emt 0:00:11]} Kg7 {[%emt 0:00:04]} 41. Qd7+ {[%emt 0:00:19]} Kg6 {[%emt 0:00:02]} 42. Qb5 {[%emt 0:00:13]} h5 {[%emt 0:00:08]} 43. Qd3+ {[%emt 0:00:09]} Kh6 {[%emt 0:00:08]} 44. Kc4 {[%emt 0:00:11]} h4 {[%emt 0:00:07]} 45. b5 {[%emt 0:00:10]} h3 {[%emt 0:00:08]} 46. Qf1 {[%emt 0:00:01]} g4 {[%emt 0:00:03]} 47. fxg4 {[%emt 0:00:07]} Qe4+ {[%emt 0:00:02]} 48. Kb3 {[%emt 0:00:06]} Qf3+ {[%emt 0:00:09]} 49. Kb4 {[%emt 0:00:01]} h2 {[%emt 0:00:10]} 50. Qa1 {[%emt 0:00:01]} Qe4+ {[%emt 0:00:05]} 51. Ka5 {[%emt 0:00:00]} Kg6 {[%emt 0:01:17]} 52. g5 {[%emt 0:00:26]} h1=Q {[%emt 0:00:13]} 53. Qf6+ {[%emt 0:00:02]} Kh5 {[%emt 0:00:04]} 54. Qf7+ {[%emt 0:00:32]} Kg4 {[%emt 0:00:05]} 55. Qd7+ {[%emt 0:00:12]} Kf3 {[%emt 0:00:07]} 0-1